bitfinex/quotes_SOLUSD_20250506
["timestamp","ask_amount","ask_price","bid_price","bid_amount"]
[1746548463823,6.97268926,143.42,143.37,18.64964886]
[1746548464030,49.6753099,143.41,143.37,68.32495876]
[1746548464430,49.6753099,143.4,143.37,18.64964886]
[1746548464640,49.6753099,143.39,143.36,14.72]
[1746548464852,49.6753099,143.4,143.36,64.3953099]
[1746548465148,49.6753099,143.39,143.36,14.72]
[1746548465739,49.6753099,143.37,143.33,254.26]
[1746548465957,49.6753099,143.36,143.33,254.26]
[1746548466335,56.65124293,143.35,143.33,254.26]
[1746548466537,49.6753099,143.34,143.33,254.26]
[1746548466727,49.6753099,143.35,143.33,254.26]
[1746548466927,6.97565186,143.36,143.33,254.26]
[1746548466928,49.6753099,143.34,143.33,254.26]
[1746548467742,49.6753099,143.34,143.33,239.58]
[1746548468123,49.6753099,143.34,143.32,14.72]
[1746548468325,56.65221633,143.33,143.32,14.72]
[1746548468757,56.65096958,143.36,143.32,14.72]
[1746548468937,70.35044865,143.37,143.32,64.3953099]
[1746548469335,49.6753099,143.36,143.32,71.37262615]
[1746548469560,70.35044865,143.37,143.32,71.37262615]
[1746548469765,70.35044865,143.37,143.33,49.6753099]
[1746548469972,49.6753099,143.36,143.34,14.7]
[1746548470157,20.67513875,143.37,143.34,14.7]
[1746548470347,49.6753099,143.36,143.34,14.7]
[1746548470554,20.67496681,143.37,143.34,14.7]
[1746548470864,70.35027671,143.37,143.34,14.7]
[1746548472167,49.6753099,143.36,143.34,14.7]
[1746548472549,49.6753099,143.35,143.34,14.72]
[1746548474360,6.9750088,143.37,143.34,14.72]
[1746548474566,49.6753099,143.37,143.34,14.72]
[1746548474872,49.6753099,143.36,143.34,14.72]
[1746548475445,49.6753099,143.37,143.34,21.69632876]
[1746548475750,49.6753099,143.38,143.34,14.72]
[1746548476068,39.74494257,143.37,143.34,14.72]
[1746548476268,32.76986835,143.37,143.34,14.72]
[1746548476471,32.76986835,143.38,143.34,54.46617395]
[1746548476968,6.97443558,143.39,143.34,54.46617395]
[1746548477173,32.76986835,143.38,143.34,54.46617395]
[1746548477379,32.76986835,143.38,143.34,47.48986835]
[1746548477560,32.76986835,143.38,143.34,54.46628035]
[1746548477760,32.76986835,143.38,143.34,47.48986835]
[1746548478378,32.76986835,143.38,143.34,14.72]
[1746548478379,32.76986835,143.37,143.34,14.72]
[1746548478670,6.97350069,143.4,143.34,54.46619442]
[1746548478876,32.76986835,143.38,143.34,54.46619442]
[1746548479681,6.97350069,143.4,143.35,51.41951721]
[1746548479978,53.44306756,143.41,143.37,32.76986835]
[1746548480148,39.74306756,143.41,143.38,14.7]
[1746548480476,32.76986835,143.4,143.38,14.7]
[1746548480678,32.76986835,143.39,143.38,14.7]
[1746548481482,32.76986835,143.39,143.34,14.72]
[1746548481669,32.76986835,143.37,143.34,29.42]
[1746548482179,32.76986835,143.36,143.34,29.42]
[1746548483682,13.7,143.4,143.34,29.42]
[1746548483979,39.74385537,143.39,143.35,32.76986835]
[1746548484184,32.76986835,143.38,143.34,62.18986835]
[1746548484365,32.76986835,143.38,143.34,69.16619906]
[1746548484553,32.76986835,143.39,143.34,69.16619906]
[1746548484876,32.76986835,143.39,143.35,32.76986835]
[1746548485265,32.76986835,143.37,143.34,29.42]
[1746548485586,32.76986835,143.36,143.34,29.42]
[1746548485786,32.76986835,143.35,143.34,14.7]
[1746548486088,32.76986835,143.36,143.34,14.7]
[1746548486985,32.76986835,143.35,143.34,14.7]
[1746548487890,24.41065698,143.38,143.34,14.7]
[1746548488059,32.76986835,143.36,143.34,14.7]
[1746548488685,6.97447342,143.38,143.34,14.7]
[1746548488991,6.97447342,143.38,143.34,29.4]
[1746548488992,32.76986835,143.37,143.34,29.4]
[1746548489581,20.67416436,143.39,143.36,32.76986835]
[1746548489790,49.54990656,143.48,143.37,32.76986835]
[1746548489791,13.7,143.43,143.37,32.76986835]
[1746548489994,32.76986835,143.41,143.37,32.76986835]
[1746548490174,39.74336904,143.4,143.36,32.76986835]
[1746548490994,6.97350069,143.4,143.37,32.76986835]
[1746548491366,39.74308153,143.41,143.37,32.76986835]
[1746548491568,6.97273639,143.42,143.37,32.76986835]
[1746548491866,20.67214158,143.43,143.38,32.76986835]
[1746548492079,6.97107005,143.45,143.39,29.38]
[1746548492284,32.76986835,143.42,143.39,29.38]
[1746548492599,32.76986835,143.4,143.39,29.38]
[1746548493804,32.76986835,143.4,143.39,14.7]
[1746548494172,39.74336904,143.4,143.39,14.7]
[1746548494370,39.74336904,143.4,143.35,14.7]
[1746548494371,41.35676904,143.4,143.35,14.7]
[1746548494593,32.76986835,143.36,143.35,14.7]
[1746548495496,39.7,143.39,143.35,14.7]
[1746548495871,32.76986835,143.36,143.35,14.7]
[1746548497208,6.97504684,143.37,143.35,14.7]
[1746548497571,32.76986835,143.36,143.35,14.7]
[1746548497773,39.74491519,143.37,143.35,14.7]
[1746548498277,32.76986835,143.36,143.35,14.7]
[1746548500208,39.74531477,143.36,143.35,14.7]
[1746548501200,39.7,143.39,143.35,14.7]
[1746548501620,17.43274897,143.41,143.36,32.76986835]
[1746548501621,32.76986835,143.4,143.36,32.76986835]
[1746548501802,6.97413119,143.39,143.36,32.76986835]
[1746548502906,39.74336904,143.4,143.36,32.76986835]
[1746548503215,39.74336904,143.4,143.35,47.46986835]
[1746548503392,39.74336904,143.4,143.35,14.7]
[1746548503393,32.76986835,143.39,143.35,14.7]
[1746548503591,24.40725243,143.4,143.35,14.7]
[1746548503796,32.76986835,143.38,143.35,14.7]
[1746548503993,32.76986835,143.37,143.35,14.7]
[1746548505014,6.97544642,143.36,143.35,14.7]
[1746548505416,39.74531477,143.36,143.35,14.7]
[1746548506914,89.95379919,143.36,143.31,14.64]
[1746548507098,32.76986835,143.33,143.31,14.64]
[1746548507300,32.76986835,143.32,143.31,14.64]
[1746548508907,39.74726159,143.32,143.31,14.64]
[1746548509322,57.1907447,143.32,143.23,32.2939]
[1746548509504,32.76986835,143.29,143.27,14.64]
[1746548509699,32.76986835,143.28,143.27,14.64]
[1746548510795,39.7492095,143.28,143.27,14.64]
[1746548510999,39.7492095,143.28,143.27,14.14]
[1746548513602,6.97934115,143.28,143.27,14.14]
[1746548513820,6.97900362,143.29,143.27,46.90986835]
[1746548514137,32.76986835,143.31,143.27,46.90986835]
[1746548514432,39.74726159,143.32,143.28,32.76986835]
[1746548515123,32.76986835,143.31,143.27,46.90986835]
[1746548515425,32.76986835,143.3,143.27,14.14]
[1746548515614,32.76986835,143.29,143.27,14.14]
[1746548515814,32.76986835,143.28,143.27,14.14]
[1746548516227,32.76986835,143.3,143.27,14.14]
[1746548516407,24.42087635,143.32,143.27,14.14]
[1746548516608,39.74726159,143.32,143.27,14.14]
[1746548516843,32.76986835,143.31,143.27,46.90986835]
[1746548517015,6.97836706,143.3,143.27,46.90986835]
[1746548517405,6.97739324,143.32,143.28,32.76986835]
[1746548517622,39.74726159,143.32,143.28,32.76986835]
[1746548518443,6.9764197,143.34,143.31,32.76986835]
[1746548518638,6.97544642,143.36,143.33,32.76986835]
[1746548519129,57.18222797,143.37,143.33,32.76986835]
[1746548519636,24.41235962,143.37,143.33,32.76986835]
[1746548519833,6.97495989,143.37,143.34,32.76986835]
[1746548520212,57.18222797,143.37,143.32,29.36]
[1746548520413,57.18222797,143.37,143.33,32.76986835]
[1746548520623,32.76986835,143.36,143.32,62.12986835]
[1746548520906,32.76986835,143.35,143.32,29.36]
[1746548521108,6.9764197,143.34,143.32,29.36]
[1746548521546,6.9764197,143.34,143.32,62.12986835]
[1746548522742,6.9764197,143.34,143.32,29.36]
[1746548522934,39.74628805,143.34,143.32,29.36]
[1746548523237,6.9764197,143.34,143.32,29.36]
[1746548523737,6.9764197,143.34,143.32,62.12986835]
[1746548524433,6.9764197,143.34,143.32,29.36]
[1746548524628,48.56905859,143.4,143.32,29.36]
[1746548524629,50.20618398,143.38,143.32,29.36]
[1746548524937,50.20618398,143.38,143.33,32.76986835]
[1746548525139,50.20618398,143.38,143.34,32.76986835]
[1746548525140,17.43631563,143.38,143.34,32.76986835]
[1746548525640,50.20618398,143.38,143.32,29.36]
[1746548525843,32.76986835,143.36,143.32,29.36]
[1746548526036,32.76986835,143.37,143.32,62.12986835]
[1746548526226,32.76986835,143.37,143.33,32.76986835]
[1746548526546,32.76986835,143.36,143.32,62.12986835]
[1746548527239,6.97544642,143.36,143.33,32.76986835]
[1746548528614,31.13319989,143.41,143.35,58.76986835]
[1746548528817,6.97155605,143.44,143.4,32.76986835]
[1746548529020,6.97155605,143.44,143.41,62.16986835]
[1746548530124,39.7414244,143.44,143.41,29.4]
[1746548530326,6.97155605,143.44,143.41,29.4]
[1746548531642,57.16980586,143.45,143.41,29.4]
[1746548532544,24.39993751,143.45,143.41,62.16986835]
[1746548532840,6.97107005,143.45,143.43,32.76986835]
[1746548533044,6.97107005,143.45,143.44,32.76986835]
[1746548533348,6.97107005,143.45,143.43,32.76986835]
[1746548533560,6.97058413,143.46,143.44,32.76986835]
[1746548533723,6.97058413,143.46,143.44,58.76986835]
[1746548533923,6.97058413,143.46,143.41,29.4]
[1746548534232,57.16691281,143.46,143.41,55.4]
[1746548534441,57.16691281,143.46,143.42,32.76986835]
[1746548534739,32.76986835,143.45,143.41,88.16986835]
[1746548534940,32.76986835,143.42,143.39,14.64]
[1746548535117,32.76986835,143.41,143.39,14.64]
[1746548535545,6.97350069,143.4,143.39,14.64]
[1746548536850,39.74336904,143.4,143.39,14.64]
[1746548537236,57.17712078,143.4,143.37,14.7]
[1746548537545,57.18052533,143.38,143.35,14.7]
[1746548537748,32.76986835,143.36,143.35,14.7]
[1746548539534,39.74531477,143.36,143.35,14.7]
[1746548540735,39.74531477,143.36,143.31,14.7]
[1746548540736,124.83103133,143.36,143.31,14.7]
[1746548540965,59.29129463,143.36,143.31,14.7]
[1746548541250,32.76986835,143.35,143.31,47.46986835]
[1746548541434,32.76986835,143.34,143.31,14.7]
[1746548541640,6.97690643,143.33,143.31,14.7]
[1746548542654,39.74677478,143.33,143.31,14.7]
[1746548543537,32.76986835,143.32,143.31,14.7]
[1746548543849,39.74677478,143.33,143.31,14.7]
[1746548545536,6.97690643,143.33,143.31,14.7]
[1746548545861,6.97690643,143.33,143.32,32.76986835]
[1746548546037,32.76986835,143.35,143.31,47.46986835]
[1746548546858,24.41065698,143.38,143.33,32.76986835]
[1746548547054,6.97447342,143.38,143.36,32.76986835]
[1746548547274,6.97447342,143.38,143.36,47.46986835]
[1746548547948,6.97398702,143.39,143.36,47.46986835]
[1746548548559,6.97398702,143.39,143.37,32.76986835]
[1746548548743,6.97301443,143.41,143.38,32.76986835]
[1746548549054,6.97301443,143.41,143.39,47.44986835]
[1746548549255,6.97301443,143.41,143.39,14.68]
[1746548550754,6.97301443,143.41,143.39,47.44986835]
[1746548551159,6.97301443,143.41,143.39,14.68]
[1746548551357,39.74288278,143.41,143.39,14.68]
[1746548551534,32.76986835,143.4,143.39,14.68]
[1746548552751,39.74336904,143.4,143.39,14.68]
[1746548554139,57.17712078,143.4,143.36,14.7]
[1746548555357,32.76986835,143.39,143.36,14.7]
[1746548555859,32.76986835,143.38,143.36,14.7]
[1746548556764,6.97447342,143.38,143.36,14.7]
[1746548558262,32.76986835,143.37,143.36,14.7]
[1746548558770,6.97447342,143.38,143.36,14.7]
[1746548558960,39.74434177,143.38,143.36,14.7]
[1746548559446,6.97447342,143.38,143.36,14.7]
[1746548560451,6.97447342,143.38,143.36,47.46986835]
[1746548561366,6.97447342,143.38,143.36,14.7]
[1746548561968,6.97350069,143.4,143.37,32.76986835]
[1746548562262,6.97350069,143.4,143.38,32.76986835]
[1746548562438,6.97350069,143.4,143.37,32.76986835]
[1746548563666,6.97350069,143.4,143.39,26.0]
[1746548563964,6.97350069,143.4,143.38,32.76986835]
[1746548565456,6.97301443,143.41,143.38,32.76986835]
[1746548566865,6.97301443,143.41,143.39,32.76986835]
[1746548567048,6.97301443,143.41,143.4,14.56]
[1746548568663,6.97269784,143.42,143.4,47.32986835]
[1746548568971,6.97269784,143.42,143.41,14.54]
[1746548569545,32.76986835,143.42,143.37,14.54]
[1746548569748,32.76986835,143.38,143.37,14.54]
[1746548570370,32.76986835,143.39,143.37,14.54]
[1746548571363,13.7,143.42,143.37,14.54]
[1746548571364,46.46986835,143.38,143.37,14.54]
[1746548571566,39.74434177,143.38,143.37,14.54]
[1746548575353,57.18052533,143.38,143.33,29.06]
[1746548575554,6.9764197,143.34,143.33,29.06]
[1746548576773,39.74628805,143.34,143.33,14.56]
[1746548577076,26.0,143.31,143.26,14.56]
[1746548577377,85.29956745,143.34,143.26,14.56]
[1746548577679,86.90356745,143.34,143.26,14.56]
[1746548577982,32.76986835,143.3,143.26,14.56]
[1746548578463,32.76986835,143.29,143.26,14.56]
[1746548578660,13.7,143.33,143.26,47.32986835]
[1746548578879,32.76986835,143.31,143.26,47.32986835]
[1746548579183,13.7,143.33,143.3,32.76986835]
[1746548579481,39.74628805,143.34,143.31,14.56]
[1746548579658,6.97593303,143.35,143.32,32.76986835]
[1746548580181,39.74580138,143.35,143.31,47.32986835]
[1746548580472,6.97593303,143.35,143.32,32.76986835]
[1746548580882,39.74580138,143.35,143.31,47.32986835]
[1746548581569,32.76986835,143.33,143.31,14.56]
[1746548581775,57.1907447,143.32,143.27,29.18]
[1746548582078,32.76986835,143.28,143.27,29.18]
[1746548582781,32.76986835,143.29,143.27,29.18]
[1746548582962,38.12087635,143.32,143.28,32.76986835]
[1746548583161,38.12087635,143.32,143.27,29.18]
[1746548583162,32.76986835,143.31,143.27,61.94986835]
[1746548583683,20.67739324,143.32,143.28,32.76986835]
[1746548583884,32.76986835,143.3,143.27,29.18]
[1746548585889,6.97885407,143.29,143.27,29.18]
[1746548586181,6.87660095,143.29,143.27,29.18]
[1746548586376,6.87660095,143.29,143.27,61.94986835]
[1746548586683,6.97852339,143.3,143.27,61.94986835]
[1746548587481,39.74839174,143.3,143.27,14.56]
[1746548587660,39.74839174,143.3,143.28,14.56]
[1746548588180,32.76986835,143.29,143.28,14.56]
[1746548589577,32.76986835,143.29,143.27,14.56]
[1746548589777,32.76986835,143.28,143.27,14.56]
[1746548589982,39.7492095,143.28,143.27,14.56]
[1746548590368,57.19756237,143.28,143.24,14.56]
[1746548590674,32.76986835,143.25,143.23,14.56]
[1746548590884,32.76986835,143.24,143.23,14.56]
[1746548591463,32.76986835,143.25,143.23,14.56]
[1746548591874,32.76986835,143.26,143.23,14.56]
[1746548592075,6.98080279,143.25,143.23,14.56]
[1746548592479,13.7,143.27,143.23,47.32986835]
[1746548592662,6.98043689,143.26,143.24,32.76986835]
[1746548593279,59.33280321,143.26,143.16,29.22]
[1746548593471,32.76986835,143.21,143.16,61.98986835]
[1746548593672,32.76986835,143.21,143.17,32.76986835]
[1746548594077,39.75310419,143.21,143.17,58.76986835]
[1746548594473,39.75310419,143.21,143.17,32.76986835]
[1746548594786,6.98323584,143.21,143.17,58.76986835]
[1746548595888,6.98323584,143.21,143.18,32.76986835]
[1746548596473,6.98323584,143.21,143.17,58.76986835]
[1746548597187,39.75310419,143.21,143.17,58.76986835]
[1746548598685,17.45166979,143.26,143.2,26.0]
[1746548598870,32.76986835,143.24,143.21,29.22]
[1746548599769,39.75067114,143.25,143.21,29.22]
[1746548599981,32.76986835,143.24,143.21,29.22]
[1746548600290,6.98177756,143.23,143.21,29.22]
[1746548604188,6.97934115,143.28,143.22,39.15326835]
[1746548604390,32.76986835,143.27,143.23,58.76986835]
[1746548604772,32.76986835,143.26,143.23,26.0]
[1746548605174,32.76986835,143.26,143.22,32.3834]
[1746548605383,32.76986835,143.26,143.22,65.15326835]
[1746548605992,6.98080279,143.25,143.22,65.15326835]
[1746548607498,6.97885407,143.29,143.24,26.0]
[1746548607677,6.97885407,143.29,143.25,32.76986835]
[1746548607993,39.74872242,143.29,143.26,29.16]
[1746548608169,32.76986835,143.27,143.26,29.16]
[1746548609377,32.76986835,143.28,143.26,29.16]
[1746548610198,6.97982829,143.27,143.26,29.16]
[1746548611087,6.97938684,143.28,143.26,61.92986835]
[1746548611986,6.97938684,143.28,143.27,32.76986835]
[1746548612196,6.97836706,143.3,143.27,32.76986835]
[1746548612384,6.97836706,143.3,143.26,55.16]
[1746548612385,6.97836706,143.3,143.28,32.76986835]
[1746548612792,6.97836706,143.3,143.27,32.76986835]
[1746548613092,6.97836706,143.3,143.26,55.16]
[1746548613288,6.97836706,143.3,143.28,32.76986835]
[1746548613691,6.97836706,143.3,143.29,58.76986835]
[1746548614199,6.97690643,143.33,143.29,58.76986835]
[1746548614496,6.97690643,143.33,143.3,32.76986835]
[1746548614698,6.97690643,143.33,143.31,29.14]
[1746548614899,39.74677478,143.33,143.31,29.14]
[1746548615283,32.76986835,143.32,143.31,29.14]
[1746548616405,17.44130002,143.34,143.31,61.90986835]
[1746548616603,6.97593303,143.35,143.32,32.76986835]
[1746548616809,6.97593303,143.35,143.32,58.76986835]
[1746548617812,32.76986835,143.36,143.34,32.76986835]
[1746548617813,6.97565108,143.36,143.34,32.76986835]
[1746548618197,50.20492312,143.39,143.35,32.76986835]
[1746548618505,50.20492312,143.39,143.33,18.64964886]
[1746548618506,32.76986835,143.38,143.36,29.14]
[1746548618809,32.76986835,143.37,143.36,29.14]
[1746548619199,32.76986835,143.38,143.36,29.14]
[1746548620293,6.97495989,143.37,143.36,29.14]
[1746548620511,39.74482824,143.37,143.36,29.14]
[1746548621401,39.74482824,143.37,143.36,14.62]
[1746548625415,6.97495989,143.37,143.36,14.62]
[1746548626621,39.74482824,143.37,143.36,14.62]
[1746548627205,57.18222797,143.37,143.32,14.48]
[1746548627527,32.76986835,143.33,143.32,28.96]
[1746548628212,39.74677478,143.33,143.32,14.48]
[1746548632504,6.97690643,143.33,143.32,14.48]
[1746548635129,32.76986835,143.36,143.32,14.48]
[1746548635421,24.41241552,143.37,143.32,14.48]
[1746548635622,32.76986835,143.35,143.32,14.48]
[1746548636013,6.9764197,143.34,143.32,14.48]
[1746548636908,39.74628805,143.34,143.32,14.48]
[1746548638729,6.9764197,143.34,143.32,14.48]
[1746548639034,6.97612492,143.35,143.32,47.24986835]
[1746548639331,6.97612492,143.35,143.33,32.76986835]
[1746548639522,6.97612492,143.35,143.32,47.24986835]
[1746548640511,39.74599327,143.35,143.32,14.48]
[1746548640704,32.76986835,143.34,143.32,14.48]
[1746548642532,6.97690643,143.33,143.32,14.48]
[1746548642735,57.18904087,143.33,143.28,254.48]
[1746548642943,65.5397367,143.29,143.24,20.5315]
[1746548643131,65.5397367,143.29,143.17,14.48]
[1746548643132,32.76986835,143.25,143.17,14.48]
[1746548643334,26.0,143.24,143.17,14.48]
[1746548643698,32.76986835,143.22,143.15,16.9738962]
[1746548643812,32.76986835,143.22,143.15,14.54246867]
[1746548644143,32.76986835,143.22,143.15,10.9223962]
[1746548644144,32.76986835,143.17,143.15,10.9223962]
[1746548644317,32.76986835,143.16,143.15,10.9223962]
[1746548644518,39.75505974,143.16,143.15,10.9223962]
[1746548644822,39.75505974,143.16,143.14,10.9223962]
[1746548645134,32.76986835,143.15,143.14,10.9223962]
[1746548645534,65.5397367,143.15,143.14,10.9223962]
[1746548645840,91.5397367,143.15,143.14,10.9223962]
[1746548646541,98.52541605,143.15,143.14,10.9223962]
[1746548647150,39.7555477,143.15,143.14,10.9223962]
[1746548647918,39.7555477,143.15,143.09,29.08]
[1746548648119,32.76986835,143.12,143.09,29.08]
[1746548648343,32.76986835,143.13,143.09,61.84986835]
[1746548648724,6.98708887,143.13,143.1,26.0]
[1746548649045,39.75695722,143.13,143.09,47.24986835]
[1746548649249,6.98708887,143.13,143.1,14.64]
[1746548649436,39.75695722,143.13,143.1,14.64]
[1746548651642,32.76986835,143.15,143.11,32.76986835]
[1746548651940,32.76986835,143.14,143.1,47.40986835]
[1746548652618,32.76986835,143.13,143.1,14.64]
[1746548652841,6.98714365,143.12,143.1,14.64]
[1746548653141,39.757012,143.12,143.1,14.64]
[1746548653647,32.76986835,143.11,143.1,14.64]
[1746548653853,32.76986835,143.12,143.1,14.64]
[1746548654043,32.76986835,143.14,143.1,47.40986835]
[1746548654248,13.7,143.17,143.11,32.76986835]
[1746548654452,32.76986835,143.15,143.11,32.76986835]
[1746548654863,32.76986835,143.14,143.1,66.05951721]
[1746548655270,6.98527572,143.16,143.12,32.76986835]
[1746548655566,39.75514407,143.16,143.12,32.76986835]
[1746548655860,32.76986835,143.14,143.1,73.40986835]
[1746548656155,32.76986835,143.12,143.11,14.6]
[1746548656561,13.7,143.15,143.11,14.6]
[1746548656738,13.7,143.15,143.09,65.89951721]
[1746548656739,32.76986835,143.13,143.1,14.6]
[1746548657538,39.75666981,143.13,143.1,14.6]
[1746548658358,13.7,143.17,143.12,32.76986835]
[1746548658665,32.76986835,143.16,143.12,32.76986835]
[1746548659241,6.98519139,143.16,143.13,32.76986835]
[1746548659555,6.98519139,143.16,143.14,14.64]
[1746548659752,6.98421567,143.18,143.15,14.62]
[1746548660060,6.98421567,143.18,143.15,47.38986835]
[1746548660261,39.75408402,143.18,143.15,14.62]
[1746548660634,6.98421567,143.18,143.15,14.62]
[1746548660840,6.98421567,143.18,143.15,32.76986835]
[1746548662264,6.98372791,143.19,143.16,32.76986835]
[1746548663242,6.98335425,143.2,143.17,32.76986835]
[1746548663456,6.98289515,143.21,143.17,32.76986835]
[1746548663656,6.98289515,143.21,143.2,26.0]
[1746548664062,6.98289515,143.21,143.19,14.64]
[1746548664364,32.76986835,143.2,143.19,14.64]
[1746548665147,46.46986835,143.2,143.19,14.64]
[1746548666154,6.98372791,143.19,143.15,29.24]
[1746548666357,39.75359626,143.19,143.15,62.00986835]
[1746548667447,39.75359626,143.19,143.15,29.24]
[1746548667647,39.75359626,143.19,143.15,62.00986835]
[1746548667849,57.21291604,143.19,143.15,29.24]
[1746548668044,32.76986835,143.18,143.15,29.24]
[1746548668373,6.98470349,143.17,143.15,29.24]
[1746548669151,39.75457184,143.17,143.15,14.64]
[1746548669355,32.76986835,143.16,143.15,14.64]
[1746548669959,32.76986835,143.16,143.11,14.64]
[1746548670166,32.76986835,143.13,143.11,14.64]
[1746548670568,39.757012,143.12,143.11,14.64]
[1746548672269,6.98714365,143.12,143.11,14.64]
[1746548672477,6.98616738,143.14,143.11,47.40986835]
[1746548672680,6.98616738,143.14,143.12,32.76986835]
[1746548673272,6.98519139,143.16,143.13,32.76986835]
[1746548674057,39.75505974,143.16,143.14,26.0]
[1746548674467,39.75505974,143.16,143.12,51.41951721]
[1746548674666,6.98519139,143.16,143.13,32.76986835]
[1746548674862,6.98519139,143.16,143.14,32.76986835]
[1746548675076,6.98470349,143.17,143.14,47.32986835]
[1746548677884,6.98470349,143.17,143.14,14.56]
[1746548678385,32.76986835,143.16,143.14,14.56]
[1746548678758,6.98470349,143.17,143.15,26.0]
[1746548679159,39.75457184,143.17,143.14,14.56]
[1746548680579,32.76986835,143.16,143.14,14.56]
[1746548681280,6.98567935,143.15,143.14,14.56]
[1746548682788,39.7555477,143.15,143.14,14.56]
[1746548683095,39.7555477,143.15,143.11,14.64]
[1746548683270,6.98714365,143.12,143.11,14.64]
[1746548684403,6.98688964,143.13,143.11,14.64]
[1746548684690,32.76986835,143.12,143.11,14.64]
[1746548685272,39.757012,143.12,143.11,14.64]
[1746548691576,6.98714365,143.12,143.11,14.64]
[1746548693989,6.98678462,143.13,143.11,47.40986835]
[1746548694196,6.98678462,143.13,143.12,32.76986835]
[1746548694400,6.98678462,143.13,143.11,47.40986835]
[1746548695400,57.2214542,143.14,143.11,14.64]
[1746548695605,32.76986835,143.12,143.11,14.64]
[1746548696600,24.45158585,143.14,143.11,14.64]
[1746548696601,6.98616738,143.14,143.11,14.64]
[1746548696796,24.45158585,143.14,143.11,14.64]
[1746548696995,57.2214542,143.14,143.11,14.64]
[1746548698607,24.45158585,143.14,143.11,14.64]
[1746548698785,6.98616738,143.14,143.11,14.64]
[1746548698988,6.98616738,143.14,143.11,47.40986835]
[1746548699507,6.98616738,143.14,143.11,14.64]
[1746548699893,6.98616738,143.14,143.11,47.40986835]
[1746548700405,6.98519139,143.16,143.13,32.76986835]
[1746548700710,6.98519139,143.16,143.12,14.5]
[1746548701007,6.98519139,143.16,143.13,32.76986835]
[1746548701505,6.98519139,143.16,143.12,14.5]
[1746548701506,32.76986835,143.15,143.12,14.5]
[1746548701904,32.76986835,143.14,143.12,14.5]
[1746548702811,6.98665548,143.13,143.12,14.5]
[1746548704999,39.75652383,143.13,143.11,14.64]
[1746548705194,32.76986835,143.12,143.11,14.64]
[1746548705599,32.76986835,143.12,143.07,14.5]
[1746548705801,32.76986835,143.1,143.07,14.5]
[1746548706291,59.38657164,143.13,143.07,47.26986835]
[1746548706488,32.76986835,143.11,143.07,47.26986835]
[1746548706694,32.76986835,143.1,143.07,14.5]
[1746548706905,6.98860856,143.09,143.07,14.5]
[1746548708204,6.98860856,143.09,143.07,47.26986835]
[1746548708711,6.98860856,143.09,143.07,14.5]
[1746548708902,6.98860856,143.09,143.07,47.26986835]
[1746548710028,6.98860856,143.09,143.07,40.5]
[1746548710390,32.76986835,143.11,143.07,73.26986835]
[1746548711518,59.38657164,143.13,143.07,73.26986835]
[1746548711817,32.76986835,143.11,143.07,73.26986835]
[1746548712017,13.7,143.12,143.07,73.26986835]
[1746548712217,24.4532942,143.13,143.09,32.76986835]
[1746548712420,6.98665548,143.13,143.1,32.76986835]
[1746548712622,6.98665548,143.13,143.11,32.76986835]
[1746548713534,6.98519139,143.16,143.11,32.76986835]
[1746548713832,6.98519139,143.16,143.09,40.13803325]
[1746548713833,6.98519139,143.16,143.14,32.76986835]
[1746548714040,6.98519139,143.16,143.13,32.76986835]
[1746548714613,6.98421567,143.18,143.15,32.76986835]
[1746548714824,6.98421567,143.18,143.16,32.76986835]
[1746548715413,6.98421567,143.18,143.15,32.76986835]
[1746548715739,6.98421567,143.18,143.16,32.76986835]
[1746548716645,24.44325321,143.19,143.16,32.76986835]
[1746548717344,39.75359626,143.19,143.15,32.76986835]
[1746548717552,6.98372791,143.19,143.16,32.76986835]
[1746548717711,6.98372791,143.19,143.17,14.5]
[1746548717909,6.98372791,143.19,143.18,32.76986835]
[1746548718226,17.45456703,143.23,143.18,32.76986835]
[1746548718426,6.98226504,143.22,143.2,32.76986835]
[1746548718732,17.45456703,143.23,143.2,32.76986835]
[1746548718733,6.98177756,143.23,143.2,32.76986835]
[1746548718943,6.98177756,143.23,143.21,32.76986835]
[1746548719362,6.98177756,143.23,143.2,32.76986835]
[1746548719654,24.43622146,143.23,143.2,32.76986835]
[1746548720723,57.20608981,143.23,143.19,47.26986835]